bitfinex/quotes_ETHUSD_20250131
["timestamp","ask_amount","ask_price","bid_price","bid_amount"]
[1738335932002,2.98018,3355.5,3355.2,17.4685]
[1738335932826,2.98035,3355.3,3355.2,17.4685]
[1738335934154,0.8291,3355.7,3355.3,2.9803]
[1738335934518,0.8291,3355.7,3355.2,20.44894]
[1738335934856,2.98026,3355.5,3355.2,17.4685]
[1738335935599,2.98035,3355.3,3355.2,17.4685]
[1738335935890,2.98028,3355.4,3355.2,17.4685]
[1738335936078,2.98026,3355.5,3355.2,17.4685]
[1738335936647,3.0,3355.6,3355.2,17.4685]
[1738335936883,0.8291,3355.7,3355.2,20.44888]
[1738335937241,2.98035,3355.3,3355.2,17.4685]
[1738335937447,4.035085,3355.3,3355.2,17.4685]
[1738335937666,1.054735,3355.3,3355.2,17.4685]
[1738335937951,3.73705,3355.3,3355.2,17.4685]
[1738335938167,0.7567,3355.3,3355.2,17.4685]
[1738335938686,0.60760353,3355.9,3355.4,2.98025]
[1738335939008,3.60760353,3355.9,3355.3,2.98029]
[1738335939347,0.8213,3356.1,3355.5,2.9801]
[1738335939643,3.80095,3356.1,3355.5,2.9801]
[1738335939846,2.97982,3355.9,3355.3,2.98035]
[1738335940263,2.97982,3355.9,3355.2,17.4685]
[1738335940264,2.98009,3355.6,3355.2,17.4685]
[1738335940755,2.97992,3355.8,3355.2,17.4685]
[1738335940976,0.7754,3355.4,3355.2,17.4685]
[1738335941291,3.75572,3355.4,3355.2,17.4685]
[1738335941453,0.7754,3355.4,3355.2,17.4685]
[1738335941858,2.98035,3355.3,3355.2,17.4685]
[1738335942680,2.98035,3355.3,3355.2,17.60020754]
[1738335942889,4.22426134,3355.3,3355.2,17.60020754]
[1738335943294,2.98035,3355.3,3355.2,17.60020754]
[1738335943502,0.7754,3355.4,3355.2,17.60020754]
[1738335943805,2.98035,3355.3,3355.2,17.60020754]
[1738335944167,5.98035,3355.3,3355.2,17.4685]
[1738335944567,5.98035,3355.3,3355.2,17.6003562]
[1738335944764,7.22425934,3355.3,3355.2,17.6003562]
[1738335946102,3.0,3355.3,3355.2,17.6003562]
[1738335946406,3.75567,3355.4,3355.2,17.6003562]
[1738335946709,0.7754,3355.4,3355.2,17.6003562]
[1738335947186,0.7584,3355.8,3355.3,2.9803]
[1738335947389,3.73798,3356.2,3355.6,2.98002]
[1738335947708,2.97965,3356.1,3355.5,2.98012]
[1738335947872,2.97965,3356.1,3355.6,0.13173975]
[1738335948270,4.36232118,3356.2,3355.7,3.11171715]
[1738335948504,1.36232118,3356.2,3355.9,2.97976]
[1738335948898,2.97964,3356.1,3356.0,0.1316511]
[1738335949115,1.36232118,3356.2,3355.5,2.98012]
[1738335949411,0.7554,3356.5,3355.6,0.13174298]
[1738335949615,0.7554,3356.9,3356.3,2.97938]
[1738335949909,0.60368266,3357.1,3356.4,0.96038038]
[1738335950087,2.97885,3357.0,3356.5,2.97921]
[1738335950295,9.41584343,3357.2,3356.6,0.1311469]
[1738335950499,3.73409,3357.2,3356.6,3.1103069]
[1738335950695,0.7554,3357.2,3356.6,3.1103469]
[1738335950902,2.9787,3357.2,3356.6,3.1103469]
[1738335951390,3.0,3357.3,3356.7,2.97909]
[1738335951587,2.97861,3357.3,3356.7,2.97909]
[1738335951922,2.97868,3357.2,3356.8,0.13091831]
[1738335952222,2.9786,3357.3,3356.7,2.97911]
[1738335952395,2.9786,3357.3,3356.9,0.13090157]
[1738335952608,4.53647034,3357.3,3356.8,0.13091448]
[1738335952800,2.97867,3357.2,3357.0,0.13088866]
[1738335953108,4.53647034,3357.3,3357.1,0.13087575]
[1738335953312,4.53647034,3357.3,3356.4,0.8292]
[1738335953497,2.97912,3356.7,3356.2,2.9795]
[1738335953825,2.97912,3356.7,3356.3,0.13094844]
[1738335954187,3.74479,3356.9,3356.3,2.97945]
[1738335954383,2.97881,3357.1,3356.4,3.11029553]
[1738335954645,2.97886,3357.0,3356.5,2.97925]
[1738335954992,2.97886,3357.0,3356.6,0.130925]
[1738335956029,4.20471703,3357.2,3356.6,0.130925]
[1738335956334,2.97851,3357.4,3356.8,2.97901]
[1738335956531,3.0,3357.3,3356.7,0.90131209]
[1738335956823,2.97873,3357.2,3356.8,0.13089918]
[1738335957033,3.0,3357.3,3356.8,0.13089918]
[1738335957194,2.9787,3357.2,3356.4,3.75044]
[1738335957397,4.00159814,3357.2,3356.9,0.13088627]
[1738335957590,2.97881,3357.1,3356.5,2.97923]
[1738335957831,2.97881,3357.1,3357.0,0.13087336]
[1738335958030,2.97895,3356.9,3356.3,2.97945]
[1738335958486,2.97895,3356.9,3356.4,0.13095083]
[1738335958768,4.20193481,3356.9,3356.4,0.13095083]
[1738335959066,3.37913481,3356.9,3356.4,2.97934]
[1738335959273,2.97878,3357.1,3356.5,3.11021792]
[1738335959567,2.97918,3356.7,3356.5,0.13093792]
[1738335959774,8.32291912,3357.2,3356.1,0.8226]
[1738335959949,8.32291912,3357.2,3356.2,0.13079298]
[1738335959950,0.0075,3357.0,3356.2,0.13079298]
[1738335960149,2.97947,3356.3,3356.2,0.13079298]
[1738335960346,2.97924,3356.6,3355.7,0.7712]
[1738335960554,2.97937,3356.5,3355.8,0.13089056]
[1738335960874,2.97935,3356.5,3355.8,3.11077056]
[1738335961374,1.46176277,3356.5,3355.8,0.13089056]
[1738335961540,2.97966,3356.1,3355.8,0.13089056]
[1738335961739,2.9795,3356.3,3355.6,2.98007]
[1738335961961,2.9795,3356.3,3355.7,0.13103356]
[1738335962167,2.97964,3356.2,3355.7,0.13103356]
[1738335962371,2.97966,3356.1,3355.7,0.13103356]
[1738335962773,2.9795,3356.3,3355.7,0.13103356]
[1738335962979,2.97903,3356.8,3356.1,3.74603]
[1738335963294,2.97903,3356.8,3356.2,2.97947]
[1738335963453,2.97903,3356.8,3356.3,2.97944]
[1738335963845,2.97914,3356.7,3356.4,0.1309814]
[1738335964044,2.97903,3356.8,3356.4,0.1309814]
[1738335964240,2.97903,3356.8,3356.2,2.97952]
[1738335964451,2.97903,3356.8,3356.5,0.13093787]
[1738335964652,2.97903,3356.8,3356.2,2.97952]
[1738335965175,2.97903,3356.8,3356.3,0.1309637]
[1738335965410,2.97903,3356.8,3356.2,2.97952]
[1738335965708,2.97903,3356.8,3356.4,0.13095079]
[1738335965912,2.97903,3356.8,3356.3,0.1309637]
[1738335966124,2.97922,3356.6,3356.5,0.13093787]
[1738335966482,3.41847624,3356.8,3356.5,0.13093787]
[1738335966683,6.39758624,3356.8,3356.5,0.13093787]
[1738335966901,6.39758624,3356.8,3356.1,3.74603]
[1738335966902,3.41847624,3356.8,3356.1,6.72561]
[1738335967105,2.97911,3356.7,3356.1,3.74598]
[1738335967415,2.97911,3356.7,3356.2,0.13097662]
[1738335967631,2.97947,3356.3,3356.2,0.13097662]
[1738335967780,3.70047362,3356.7,3356.2,0.13097662]
[1738335967980,2.97916,3356.7,3356.2,2.97953]
[1738335968179,2.97897,3356.9,3356.4,2.97935]
[1738335968377,2.97897,3356.9,3356.5,0.13093787]
[1738335968620,5.95798,3356.9,3356.3,2.97943]
[1738335968807,2.97902,3356.8,3356.3,2.97943]
[1738335969123,2.97896,3356.9,3356.4,0.13095079]
[1738335970368,1.86793824,3357.2,3356.4,0.13095079]
[1738335970649,0.31117663,3357.2,3356.9,2.97892]
[1738335970857,2.97822,3357.7,3357.2,2.9786]
[1738335970999,2.97811,3357.9,3357.2,2.9786]
[1738335971352,2.97828,3357.7,3357.3,0.1306733]
[1738335971560,2.97828,3357.7,3357.1,2.97874]
[1738335971845,2.97811,3357.9,3357.2,0.13067473]
[1738335972054,3.7732,3358.0,3357.4,2.97841]
[1738335972344,3.7732,3358.0,3357.5,0.13063601]
[1738335972549,2.97812,3357.9,3357.3,2.9785]
[1738335972711,2.97812,3357.9,3357.4,0.13064684]
[1738335973031,2.97742,3358.7,3358.1,2.9778]
[1738335973528,2.97742,3358.7,3358.2,0.13029387]
[1738335973730,3.0,3358.8,3358.2,0.13029387]
[1738335973936,4.27872517,3358.9,3358.4,2.9776]
[1738335974133,4.168256,3359.7,3358.4,2.9776]
[1738335974134,2.97688,3359.3,3358.6,2.97738]
[1738335974359,2.97688,3359.3,3358.7,2.97726]
[1738335974509,2.97673,3359.4,3358.8,2.97721]
[1738335974713,2.97673,3359.4,3358.9,0.13004683]
[1738335974915,0.73309755,3359.3,3358.9,0.13004683]
[1738335975239,2.97674,3359.4,3358.9,0.13004683]
[1738335975396,3.0,3359.3,3358.9,0.13004683]
[1738335975601,2.97696,3359.2,3358.9,0.13004683]
[1738335975835,0.31104457,3359.7,3358.8,0.8165]
[1738335976007,0.31104457,3359.7,3359.6,2.97654]
[1738335976212,2.97577,3360.5,3358.9,2.69981844]
[1738335976213,3.79768,3360.7,3359.4,2.97672]
[1738335976467,0.8221,3360.7,3360.1,2.97608]
[1738335976670,0.31098328,3361.5,3359.6,0.42722077]
[1738335976671,2.97567,3360.6,3359.9,2.97621]
[1738335976869,2.97567,3360.6,3360.2,0.12948945]
[1738335976870,2.97572,3360.6,3360.2,0.12948945]
[1738335977034,0.36192157,3360.5,3360.0,2.97616]
[1738335977366,2.97577,3360.5,3359.9,2.97626]
[1738335977563,2.97577,3360.5,3360.0,0.1282392]
[1738335977980,0.35820653,3360.4,3360.0,0.1282392]
[1738335978179,2.97592,3360.3,3359.7,2.97638]
[1738335978338,3.33403653,3360.4,3359.8,0.12826498]
[1738335978554,3.33403653,3360.4,3359.6,2.97654]
[1738335978831,3.60691165,3360.3,3359.7,0.12809457]
[1738335979268,0.03720458,3360.2,3359.7,0.12809457]
[1738335979470,2.97636,3359.8,3359.7,0.12809457]
[1738335979772,2.97676,3359.4,3359.1,0.4992]
[1738335979973,2.97676,3359.4,3359.2,0.11893609]
[1738335980143,3.01402268,3359.3,3359.2,0.11893609]
[1738335980471,2.97689,3359.2,3359.1,0.4992]
[1738335980871,6.44590204,3360.2,3359.1,0.61394541]
[1738335981086,2.97638,3359.8,3359.1,0.4992]
[1738335981262,3.0,3360.1,3359.2,0.1149494]
[1738335981446,2.97651,3359.7,3359.2,0.1149494]
[1738335981970,2.97598,3360.3,3359.3,0.8215]
[1738335982271,2.97568,3360.6,3359.4,0.11492361]
[1738335982476,2.97602,3360.2,3359.6,2.97654]
[1738335982972,2.97602,3360.2,3359.7,0.11495344]
[1738335983275,2.9762,3360.0,3359.7,0.11495344]
[1738335983445,2.9762,3360.0,3359.4,2.97665]
[1738335983650,2.9762,3360.0,3359.8,0.11481497]
[1738335983853,3.273622,3360.2,3359.4,2.97665]
[1738335984051,2.97602,3360.2,3359.9,0.11480209]
[1738335984350,2.97621,3360.0,3359.4,2.97666]
[1738335984675,2.97569,3360.6,3359.3,0.8215]
[1738335985075,2.97577,3360.5,3359.8,2.97632]
[1738335985272,2.97569,3360.6,3359.9,2.97623]
[1738335985586,3.73128,3360.8,3359.9,2.97623]
[1738335985792,2.97612,3360.1,3359.4,2.97663]
[1738335986082,2.97612,3360.1,3359.5,2.9766]
[1738335986282,0.595204,3360.1,3359.3,0.8215]
[1738335986439,2.97652,3359.7,3359.3,0.8215]
[1738335986639,2.97667,3359.5,3359.1,0.4992]
[1738335986948,3.0,3360.3,3359.1,0.4992]
[1738335986949,3.0,3360.0,3359.1,0.4992]
[1738335987160,0.3469862,3360.4,3359.6,2.97649]
[1738335987338,2.97607,3360.2,3359.4,2.97669]
[1738335987539,2.97627,3359.9,3359.4,2.97669]
[1738335987733,2.97607,3360.2,3359.4,2.97669]
[1738335988046,3.0,3360.3,3359.8,0.754]
[1738335988239,2.97611,3360.1,3359.5,3.73937]
[1738335988672,2.97611,3360.1,3359.6,0.11083431]
[1738335988837,2.97594,3360.3,3359.6,3.08728431]
[1738335989051,2.97577,3360.5,3359.7,2.9764]
[1738335989360,7.20361204,3361.3,3359.8,0.11080854]
[1738335989538,2.97557,3360.7,3360.0,2.97612]
[1738335989734,2.97557,3360.7,3360.1,0.11078884]
[1738335989978,2.97557,3360.7,3360.1,3.08686884]
[1738335990184,2.97539,3360.9,3360.3,2.97584]
[1738335990393,2.97513,3361.2,3360.5,2.97574]
[1738335990535,2.97527,3361.1,3360.6,0.11072442]
[1738335990736,2.97536,3361.0,3360.6,0.11072442]
[1738335991049,2.97548,3360.8,3360.3,2.97591]
[1738335991249,2.97548,3360.8,3360.2,0.8044]
[1738335991250,2.97567,3360.6,3360.2,0.8044]
[1738335991570,3.03719986,3361.1,3360.2,0.8044]
[1738335991789,2.9757,3360.6,3360.2,0.8044]
[1738335992092,2.97592,3360.3,3359.8,0.771]
[1738335992237,2.97621,3360.0,3359.8,0.771]
[1738335992434,2.97621,3360.0,3359.5,0.7649]
[1738335992636,2.97601,3360.2,3359.5,0.7649]
[1738335992637,2.97613,3360.1,3359.5,3.74145]
[1738335993074,2.97579,3360.5,3359.8,2.97628]
[1738335993375,2.9759,3360.4,3359.8,2.97628]
[1738335993875,2.97594,3360.3,3359.8,2.97628]
[1738335994048,2.97594,3360.3,3359.6,2.97653]
[1738335994237,2.97605,3360.2,3359.6,2.97653]
[1738335994436,2.97605,3360.2,3359.6,5.953]
[1738335994678,2.9759,3360.4,3359.6,2.97647]
[1738335994937,2.97612,3360.1,3359.6,2.97647]
[1738335995467,2.97592,3360.3,3359.1,0.4992]
[1738335995468,2.97646,3359.7,3359.1,4.3009]
[1738335995669,2.97633,3359.9,3359.1,1.324]
[1738335995670,2.97673,3359.4,3359.1,1.324]
[1738335996109,2.97673,3359.4,3359.1,0.4992]
[1738335996342,5.95319,3359.6,3359.1,0.4992]
[1738335996472,2.97611,3360.1,3359.2,0.347635]
[1738335996669,2.97625,3360.0,3359.4,2.97665]
[1738335996874,2.97631,3359.9,3359.3,0.8248]
[1738335997184,2.97619,3360.0,3359.3,0.8248]
[1738335997385,2.97619,3360.0,3359.4,2.97667]
[1738335997998,2.97648,3359.7,3359.3,0.8248]
[1738335998196,0.30136863,3359.6,3359.1,0.4992]
[1738335998411,2.97664,3359.5,3359.1,0.4992]
[1738335998913,0.30136863,3359.6,3359.1,0.4992]
[1738335999113,2.97621,3360.0,3359.4,2.97669]
[1738335999347,5.97629,3359.9,3359.4,2.97669]
[1738335999525,5.97629,3359.9,3359.2,2.97689]
[1738335999526,5.97629,3359.9,3359.2,5.95372]
[1738335999723,3.0,3359.9,3359.3,2.97673]
[1738336000088,2.97642,3359.8,3359.1,0.4992]
[1738336000432,2.97642,3359.8,3359.2,2.97687]
[1738336001336,2.97621,3360.0,3359.4,2.97668]
[1738336001539,2.97637,3359.8,3359.2,2.97687]
[1738336001746,3.871433,3360.0,3359.2,2.97687]
[1738336001948,2.97627,3359.9,3359.4,2.97672]
[1738336002099,2.97627,3359.9,3359.3,2.97677]
[1738336002301,5.95202,3360.2,3359.1,0.4992]
[1738336002500,0.95470462,3360.1,3359.1,0.4992]
[1738336002832,2.9766,3359.6,3359.1,0.4992]
[1738336003449,2.97678,3359.4,3359.1,0.4992]
[1738336003653,2.97689,3359.2,3359.1,0.4992]
[1738336004841,2.97678,3359.4,3359.1,0.4992]
[1738336005298,2.97689,3359.2,3359.1,0.4992]
[1738336005904,6.01410512,3359.2,3359.1,0.4992]
[1738336006250,5.97689,3359.2,3359.1,0.4992]
[1738336007103,6.821108,3359.2,3359.1,0.4992]
[1738336007303,6.78389,3359.2,3359.1,0.4992]
[1738336007602,8.53052219,3359.2,3359.1,0.4992]
[1738336008319,5.97689,3359.2,3359.1,0.4992]
[1738336008528,2.97678,3359.4,3359.1,0.4992]
[1738336008862,2.97646,3359.7,3359.2,0.1037513]
[1738336009005,2.9763,3359.9,3359.2,0.1037513]
[1738336009202,2.9763,3359.9,3359.3,2.97675]
[1738336009473,2.9763,3359.9,3359.4,0.10372552]
[1738336009823,2.9763,3359.9,3359.2,2.97686]
[1738336010147,2.97646,3359.7,3359.5,0.10371263]
[1738336010302,2.97646,3359.7,3359.1,0.4992]
[1738336010303,2.97668,3359.5,3359.1,0.4992]
[1738336010515,2.97689,3359.2,3359.1,0.4992]
[1738336010719,6.01410613,3359.2,3359.1,0.4992]
[1738336010960,5.97689,3359.2,3359.1,0.4992]
[1738336011288,8.027609,3359.2,3359.1,0.4992]
[1738336011418,8.592609,3359.2,3359.1,1e-05]
[1738336011778,2.97776,3358.3,3357.8,0.7639]
[1738336012379,0.03722666,3358.2,3357.3,0.7849]
[1738336012525,2.97805,3358.0,3357.4,2.97848]
[1738336013421,0.7802,3358.4,3357.7,2.97817]
[1738336013422,3.0,3358.3,3357.7,2.97817]
[1738336013676,5.97772,3358.3,3357.7,2.97817]
[1738336013969,2.97779,3358.2,3357.7,2.97817]
[1738336014997,2.97779,3358.2,3357.4,3.888447]
[1738336015297,2.97779,3358.2,3357.6,2.97828]
[1738336016577,3.87333,3358.2,3357.5,2.97835]
[1738336016743,2.9779,3358.1,3357.5,2.97835]
[1738336018075,2.9779,3358.1,3357.6,2.97828]
[1738336018581,2.9779,3358.1,3357.7,0.10052158]
[1738336018784,2.9779,3358.1,3357.4,2.97843]
[1738336018982,2.9779,3358.1,3357.5,0.10054739]
[1738336019151,2.97828,3357.7,3357.5,0.10054739]
[1738336019350,2.97828,3357.7,3357.3,0.7849]
[1738336019571,2.97828,3357.7,3357.4,0.10059435]
[1738336020388,2.9784,3357.5,3357.4,0.10059435]
[1738336020701,2.9784,3357.5,3356.3,2.97945]
[1738336020702,2.97901,3356.9,3356.3,2.97945]
[1738336020904,0.7576,3357.4,3356.0,2.97971]
[1738336020905,2.97923,3356.6,3356.0,2.97971]
[1738336021057,2.97923,3356.6,3356.4,0.08333103]
[1738336021058,0.03724174,3356.5,3356.4,0.08333103]
[1738336021251,2.97943,3356.4,3355.8,3.75406]
[1738336021483,2.97943,3356.4,3355.8,0.7742]
[1738336021664,2.97948,3356.3,3355.9,0.080133]
[1738336021880,2.97943,3356.4,3355.9,0.080133]
[1738336022190,0.35789812,3356.3,3356.0,0.08012008]
[1738336022503,3.0,3356.5,3356.0,2.97972]
[1738336022700,3.0,3356.5,3356.1,0.08010717]
[1738336023010,0.7877,3357.0,3356.1,0.87520717]
[1738336023152,2.97868,3357.2,3356.5,2.97926]
[1738336023351,3.0,3357.1,3356.6,0.08004259]
[1738336023655,5.97864,3357.3,3356.6,3.05923259]
[1738336024007,3.0,3357.1,3356.6,3.05923259]
[1738336024347,3.0,3357.1,3356.6,0.08004259]
[1738336024583,0.376626,3357.3,3356.7,2.97909]
[1738336024584,3.376626,3357.3,3356.7,2.97909]
[1738336024769,3.376626,3357.3,3356.8,0.08001677]
[1738336024989,0.7142886,3357.2,3356.8,0.08001677]
[1738336025855,3.0,3357.1,3356.8,0.08001677]
[1738336026471,0.7142886,3357.2,3356.8,0.08001677]
[1738336026673,0.7142886,3357.2,3356.8,3.05902677]
[1738336026893,0.7142886,3357.2,3356.8,0.08001677]
[1738336027203,1.00480646,3357.1,3356.6,2.97914]
[1738336027500,4.00480646,3357.1,3356.7,0.08002968]
[1738336027852,4.00480646,3357.1,3356.7,3.05913968]
[1738336028054,4.00480646,3357.1,3356.7,2.97911]
[1738336028253,4.00480646,3357.1,3356.8,0.08001677]
[1738336028713,0.01304275,3534.8,3356.8,0.89051677]
[1738336028714,0.31100431,3357.7,3356.8,0.89051677]
[1738336028862,2.97837,3357.6,3357.0,2.97884]
[1738336029059,0.32893743,3357.6,3356.8,0.89051677]
[1738336029419,2.97872,3357.2,3356.6,2.97912]
[1738336030070,2.97849,3357.4,3356.7,2.97909]
[1738336030273,3.60716874,3357.3,3356.7,2.97909]
[1738336030456,2.9787,3357.2,3356.4,3.73755]
[1738336030656,2.9787,3357.2,3356.6,2.97919]
[1738336031285,0.62857874,3357.3,3356.6,2.97919]
[1738336031492,3.30729743,3357.6,3356.4,0.7582]
[1738336031696,3.30729743,3357.6,3357.0,2.97881]
[1738336032617,2.97851,3357.4,3356.8,2.979]
[1738336032906,0.7673,3357.4,3356.6,2.97918]
[1738336033163,3.74584,3357.4,3356.7,2.97911]
[1738336033332,2.97844,3357.5,3356.4,0.7582]
[1738336033333,2.97844,3357.5,3356.9,2.97885]
[1738336033627,2.97844,3357.5,3357.0,0.0803203]
[1738336033979,0.32893743,3357.6,3356.5,2.97922]
[1738336033980,2.97876,3357.1,3356.5,2.97922]
[1738336034175,3.01581494,3357.4,3356.6,0.08037195]
[1738336034176,0.297876,3357.0,3356.6,0.08037195]
[1738336034404,3.0,3357.5,3357.0,2.97884]
[1738336034608,3.0,3357.5,3357.1,0.08030739]
[1738336034930,3.0,3357.5,3357.0,2.97884]
[1738336035126,3.70746074,3357.5,3357.2,0.08029449]
[1738336035276,3.70746074,3357.5,3357.1,0.08030739]
[1738336035600,2.97859,3357.3,3357.2,0.08029449]
[1738336035788,6.66437074,3357.5,3356.8,2.979]
[1738336035990,0.69933082,3357.4,3356.9,0.08033321]
[1738336036205,0.69933082,3357.4,3356.7,2.97906]
[1738336036531,2.97834,3357.6,3357.1,2.97873]
[1738336036738,3.74209,3358.2,3357.1,0.7622]
[1738336036943,2.97768,3358.4,3357.8,2.97805]
[1738336037106,0.55,3359.3,3357.3,0.7622]
[1738336037107,0.7643,3358.8,3358.0,0.7622]
[1738336037309,0.31087371,3358.9,3358.2,2.97776]
[1738336037506,3.30604537,3358.8,3358.2,5.95548]
[1738336037842,3.30604537,3358.8,3358.3,3.05811264]
[1738336038150,0.32879537,3358.8,3358.3,3.05811264]
[1738336038290,0.31087371,3358.9,3358.6,2.9774]
[1738336038641,0.31087371,3358.9,3358.7,0.08038104]
[1738336039241,0.31087371,3358.9,3358.8,2.97725]
[1738336039625,0.31087371,3358.9,3358.8,3.05710347]
[1738336040348,2.97576,3360.5,3359.7,2.97637]
[1738336040653,6.570984,3360.4,3359.8,3.05581652]
[1738336040895,2.97585,3360.4,3359.8,3.05581652]
[1738336041053,2.97602,3360.2,3359.8,0.07951652]
[1738336041260,0.595201,3360.1,3359.8,0.07951652]
[1738336041574,2.97599,3360.3,3359.8,0.07951652]
[1738336042087,2.97605,3360.2,3359.8,0.07951652]
[1738336042236,3.0,3360.2,3359.8,0.07951652]
[1738336042436,5.97603,3360.2,3359.8,0.07951652]
[1738336042687,0.895202,3360.1,3359.8,0.07951652]
[1738336042896,3.871322,3360.1,3359.8,0.07951652]
[1738336043385,0.895202,3360.1,3359.8,0.07951652]
[1738336044992,6.79537,3359.9,3359.8,0.07951652]
[1738336045316,0.895202,3360.1,3359.2,0.8296]
[1738336045472,2.97592,3360.3,3359.4,2.97664]
[1738336045657,2.9761,3360.1,3359.5,2.97656]
[1738336045852,3.0,3360.4,3359.5,0.07862819]
[1738336046058,2.97609,3360.2,3359.5,3.05524819]
[1738336046369,2.97609,3360.2,3359.6,2.97654]
[1738336046578,0.66050138,3360.3,3359.4,2.97664]
[1738336046579,0.66050138,3360.3,3359.7,0.07860241]
[1738336046764,0.66050138,3360.3,3359.4,2.97664]
[1738336046969,2.97603,3360.2,3359.6,2.97651]
[1738336047167,3.69777252,3360.2,3359.7,0.07843226]
[1738336047370,0.60501378,3360.5,3359.9,2.97619]
[1738336047574,0.60501378,3360.5,3359.4,0.7568]
[1738336047575,2.97621,3360.0,3359.4,0.7568]
[1738336047963,2.97638,3359.8,3359.1,2.97697]
[1738336048157,2.9769,3359.2,3358.7,0.7568]
[1738336048460,2.97682,3359.3,3358.7,0.7568]
[1738336048655,2.97682,3359.3,3358.8,0.07026132]
[1738336048853,2.97682,3359.3,3358.7,3.73413]
[1738336049054,0.595355,3359.3,3358.9,0.07024842]
[1738336049257,3.27789866,3359.7,3358.9,2.97716]
[1738336049258,2.97665,3359.5,3358.9,2.97716]
[1738336049458,3.0,3359.6,3359.0,0.07023553]
[1738336049859,3.03720999,3359.6,3359.0,0.07023553]
[1738336050166,0.30135866,3359.7,3359.0,0.07023553]
[1738336050360,7.23449204,3360.6,3359.4,0.7865]
[1738336050563,2.97648,3359.7,3359.5,0.07022546]
[1738336050892,3.0,3360.4,3359.4,2.97671]
[1738336051204,2.97637,3359.8,3359.5,0.07022546]
[1738336051404,2.97637,3359.8,3359.2,2.97684]
[1738336051703,2.97637,3359.8,3359.3,0.07017955]
[1738336052135,2.97627,3360.0,3359.2,2.97684]
[1738336052437,3.33412087,3359.9,3359.3,0.07017955]
[1738336052637,2.97642,3359.8,3359.3,0.07017955]
[1738336052936,2.9766,3359.6,3359.1,0.7865]
[1738336053089,2.9766,3359.6,3359.4,0.07015534]
[1738336053290,2.97642,3359.8,3359.2,2.97689]
[1738336053490,0.64012716,3359.8,3359.5,0.07014623]
[1738336053699,0.64012716,3359.8,3359.3,2.97677]
[1738336053908,0.64012716,3359.8,3359.6,0.07013333]
[1738336054109,0.64012716,3359.8,3359.3,2.97677]
[1738336054110,3.61649716,3359.8,3359.3,2.97677]
[1738336054310,6.61649716,3359.8,3359.7,0.07011555]
[1738336054609,6.61649716,3359.8,3359.7,0.07011969]
[1738336054794,6.61649716,3359.8,3359.1,6.74037]
[1738336054996,6.61649716,3359.8,3359.2,0.07018414]
[1738336055235,6.61649716,3359.8,3359.2,3.04706414]
[1738336055392,0.9950488,3359.7,3359.2,0.07018414]
[1738336055595,2.97663,3359.5,3359.2,0.07018414]
[1738336055832,2.97681,3359.3,3358.7,3.79086]
[1738336056141,2.97681,3359.3,3358.8,0.07023648]
[1738336056701,0.03721338,3359.2,3358.8,0.07023648]
[1738336056895,2.97716,3358.9,3358.8,0.07023648]
[1738336057095,3.72976,3358.9,3358.1,0.8136]
[1738336057296,3.0,3359.0,3358.4,2.9776]
[1738336057501,3.0,3359.0,3358.5,2.97748]
[1738336057726,0.31092757,3359.6,3359.1,2.9769]
[1738336057938,0.31092757,3359.6,3359.3,2.9768]
[1738336058340,0.31092757,3359.6,3359.4,0.06700328]
[1738336059353,0.31092757,3359.6,3359.4,3.04371328]
[1738336059943,0.31092757,3359.6,3359.4,0.06700328]
[1738336060776,0.31092757,3359.6,3359.2,2.97683]
[1738336060911,0.31092757,3359.6,3359.5,0.06699039]
[1738336061116,0.31092757,3359.6,3359.5,3.78223]
[1738336061331,0.31092757,3359.6,3359.5,3.84922039]
[1738336062866,0.31092757,3359.6,3359.5,0.87259039]
[1738336063240,0.31092757,3359.6,3359.5,3.84922039]
[1738336063474,0.31092757,3359.6,3359.5,4.53181243]
[1738336065095,0.31092757,3359.6,3359.5,1.55518243]
[1738336065245,0.31092757,3359.6,3359.5,3.84922039]
[1738336070451,0.31092757,3359.6,3359.5,0.06699039]
[1738336071064,0.31092757,3359.6,3359.3,2.97672]
[1738336071212,0.31092757,3359.6,3359.5,0.06409999]
[1738336071419,0.31092757,3359.6,3359.3,2.97672]
[1738336071619,0.31092757,3359.6,3359.4,0.06411288]
[1738336072405,0.31092757,3359.6,3359.2,2.97687]
[1738336072610,0.31092757,3359.6,3359.3,0.0642163]
[1738336072771,3.28747757,3359.6,3359.1,0.7738]
[1738336073110,1.01821333,3359.6,3359.2,0.06422919]
[1738336073287,2.97674,3359.4,3359.2,0.06422919]
[1738336073486,2.97674,3359.4,3358.8,2.97719]
[1738336073712,2.97674,3359.4,3359.3,0.06430306]
[1738336073916,2.97674,3359.4,3358.8,2.97719]
[1738336074097,2.97674,3359.4,3359.3,0.06430306]
[1738336074304,3.68406876,3359.4,3358.8,2.97719]
[1738336074499,3.68406876,3359.4,3359.3,0.06430306]
[1738336074690,3.68406876,3359.4,3358.8,2.97719]
[1738336075197,3.68406876,3359.4,3358.9,0.06441499]
[1738336075404,2.97707,3359.0,3358.9,0.06441499]
[1738336075587,4.060377,3359.0,3358.3,0.8149]
[1738336075781,1.083307,3359.0,3358.4,0.05411194]
[1738336075982,0.7856,3359.0,3358.4,3.03165194]
[1738336076199,0.31076876,3358.9,3358.4,3.03165194]
[1738336076406,2.97743,3358.6,3358.4,0.05411194]
[1738336076611,3.3124728,3358.5,3357.7,3.80716]
[1738336076807,3.3124728,3358.5,3357.3,2.6958042]
[1738336076808,2.97784,3358.2,3357.8,0.05224649]
[1738336077121,2.97784,3358.2,3357.5,5.33539]
[1738336077325,2.97784,3358.2,3357.9,0.05029073]
[1738336077476,2.97762,3358.4,3357.7,2.97816]
[1738336077679,2.97771,3358.3,3358.0,0.04835139]
[1738336077987,3.654997,3358.4,3358.1,0.04833849]
[1738336077988,2.97781,3358.2,3358.1,0.04833849]
[1738336078316,2.97781,3358.2,3357.6,2.97826]
[1738336078788,2.97775,3358.3,3357.7,0.0483901]
[1738336078988,2.97779,3358.2,3357.7,0.0483901]